lending/lending_fUSD_20250114
["ID","MTS","AMOUNT","RATE_DAILY","PERIOD"]
[348960426,1736894632685,-500.0,9.999e-05,2]
[348960427,1736894632710,-500.0,9.999e-05,2]
[348960428,1736894632734,-500.0,9.999e-05,2]
[348960429,1736894632758,-613.58590833,9.999e-05,2]
[348960430,1736894632783,-513.52,9.999e-05,2]
[348960431,1736894632806,-257.72,9.999e-05,2]
[348960432,1736894632830,-500.0,9.999e-05,2]
[348960433,1736894632854,-500.0,9.999e-05,2]
[348960434,1736894632881,-500.0,9.999e-05,2]
[348960435,1736894632904,-500.0,9.999e-05,2]
[348960436,1736894632928,-500.0,9.999e-05,2]
[348960437,1736894632952,-189.09083855,9.999e-05,2]
[348960438,1736894632975,-500.0,9.999e-05,2]
[348960439,1736894632999,-500.0,9.999e-05,2]
[348960440,1736894633022,-500.0,9.999e-05,2]
[348960441,1736894633046,-605.02,9.999e-05,2]
[348960442,1736894633070,-249.75,9.999e-05,2]
[348960443,1736894633095,-500.0,9.999e-05,2]
[348960444,1736894633120,-500.0,9.999e-05,2]
[348960445,1736894633145,-365.89909787,9.999e-05,2]
[348960446,1736894633170,-500.0,9.999e-05,2]
[348960447,1736894633194,-500.0,9.999e-05,2]
[348960448,1736894633219,-630.29,9.999e-05,2]
[348960449,1736894633242,-500.0,9.999e-05,2]
[348960450,1736894633268,-560.15,9.999e-05,2]
[348960451,1736894633292,-500.0,9.999e-05,2]
[348960452,1736894633316,-500.0,9.999e-05,2]
[348960453,1736894633338,-500.0,9.999e-05,2]
[348960454,1736894633361,-500.0,9.999e-05,2]
[348960455,1736894633384,-500.0,9.999e-05,2]
[348960456,1736894633408,-640.83085577,9.999e-05,2]
[348960457,1736894633432,-500.0,9.999e-05,2]
[348960458,1736894633455,-500.0,9.999e-05,2]
[348960459,1736894633478,-500.0,0.0001,2]
[348960460,1736894633829,588.89278243,9.886e-05,2]
[348960461,1736894641064,500.0,9.999e-05,2]
[348960462,1736894642878,500.0,9.999e-05,2]
[348960463,1736894647087,500.0,9.999e-05,2]
[348960464,1736894656193,500.0,9.999e-05,2]
[348960465,1736894668556,500.0,9.999e-05,2]
[348960466,1736894672055,500.0,9.999e-05,2]
[348960467,1736894678170,500.0,9.999e-05,2]
[348960468,1736894683522,500.0,9.999e-05,2]
[348960469,1736894694049,309.2,8.219e-05,2]
[348960470,1736894708346,500.0,9.999e-05,2]
[348960471,1736894708644,500.0,9.999e-05,2]
[348960472,1736894711453,269.3303955,9.999e-05,2]
[348960473,1736894712592,500.0,9.999e-05,2]
[348960474,1736894718625,507.66,9.999e-05,2]
[348960475,1736894720493,631.89641738,9.999e-05,2]
[348960477,1736894739085,500.0,9.999e-05,2]
[348960478,1736894745572,500.0,9.999e-05,2]
[348960479,1736894757033,500.0,9.999e-05,2]
[348960480,1736894760377,500.0,9.999e-05,2]
[348960481,1736894768126,500.0,9.999e-05,2]
[348960482,1736894774065,500.0,9.999e-05,2]
[348960483,1736894781087,500.0,9.999e-05,2]
[348960484,1736894787095,500.0,9.999e-05,2]
[348960485,1736894793601,500.0,9.999e-05,2]
[348960486,1736894814380,594.92,9.999e-05,2]
[348960487,1736894823082,500.0,9.999e-05,2]
[348960488,1736894828395,530.74,9.999e-05,2]
[348960489,1736894836964,500.0,9.999e-05,2]
[348960490,1736894857087,625.97,9.999e-05,2]
[348960491,1736894864943,500.0,9.999e-05,2]
[348960492,1736894872488,500.0,9.999e-05,2]
[348960493,1736894878453,719.92196236,9.973e-05,2]
[348960494,1736894883469,719.92196234,0.0001,2]
[348960495,1736894899899,500.0,9.999e-05,2]
[348960496,1736894914063,500.0,9.999e-05,2]
[348960497,1736894939118,500.0,9.999e-05,2]
[348960504,1736894993814,239.97398746,9.973e-05,2]
[348960508,1736894998804,239.97398744,0.0001,2]
[348960509,1736895007060,200.0,0.0001,2]
[348960513,1736895031735,-162.14,0.00010014,2]
[348960514,1736895031747,-239.97398744,0.00010026,2]
[348960515,1736895031757,-2054.49695245,0.00010073,4]
[348960516,1736895031767,-200.0,0.000101,2]
[348960517,1736895031776,-1000.0,0.00010126,2]
[348960518,1736895031786,-153.58,0.00010137,2]
[348960519,1736895031796,-150.0,0.00010247,2]
[348960520,1736895031805,-150.0,0.00010272,2]
[348960521,1736895031815,-300.0,0.00010272,2]
[348960522,1736895031824,-500.0,0.00010273,2]
[348960523,1736895031834,-500.0,0.00010273,2]
[348960524,1736895031843,-464.46,0.00010273,2]
[348960525,1736895031852,-500.0,0.00010273,2]
[348960526,1736895031862,-500.0,0.00010273,2]
[348960527,1736895031871,-500.0,0.00010273,2]
[348960528,1736895031880,-500.0,0.00010273,2]
[348960529,1736895031889,-500.0,0.00010273,2]
[348960530,1736895031899,-500.0,0.00010273,2]
[348960531,1736895031908,-500.0,0.00010273,2]
[348960532,1736895031917,-500.0,0.00010273,2]
[348960533,1736895031927,-500.0,0.00010273,2]
[348960534,1736895031936,-500.0,0.00010273,2]
[348960535,1736895031955,-500.0,0.00010273,2]
[348960536,1736895031966,-500.0,0.00010273,2]
[348960537,1736895031976,-217.91069669,0.00010273,2]
[348960538,1736895031986,-500.0,0.00010273,2]
[348960539,1736895031996,-500.0,0.00010273,2]
[348960540,1736895032005,-500.0,0.00010273,2]
[348960541,1736895032015,-500.0,0.00010273,2]
[348960542,1736895032025,-500.0,0.00010273,2]
[348960543,1736895032036,-500.0,0.00010273,2]
[348960544,1736895032046,-500.0,0.00010273,2]
[348960545,1736895032056,-500.0,0.00010273,2]
[348960546,1736895032066,-513.52,0.00010273,2]
[348960547,1736895032076,-605.19802321,0.00010273,2]
[348960548,1736895032087,-500.0,0.00010273,2]
[348960549,1736895032098,-500.0,0.00010273,2]
[348960550,1736895032108,-500.0,0.00010273,2]
[348960551,1736895032118,-500.0,0.00010273,2]
[348960552,1736895032127,-500.0,0.00010273,2]
[348960553,1736895032136,-605.02,0.00010273,2]
[348960554,1736895032146,-500.0,0.00010273,2]
[348960555,1736895032156,-500.0,0.00010273,2]
[348960556,1736895032166,-500.0,0.00010273,2]
[348960557,1736895032176,-630.29,0.00010273,2]
[348960558,1736895032186,-500.0,0.00010273,2]
[348960559,1736895032196,-560.15,0.00010273,2]
[348960560,1736895032206,-500.0,0.00010273,2]
[348960561,1736895032216,-500.0,0.00010273,2]
[348960562,1736895032225,-385.17479669,0.00010273,2]
[348960563,1736895032234,-500.0,0.00010273,2]
[348960564,1736895032244,-500.0,0.00010273,2]
[348960565,1736895032254,-500.0,0.00010273,2]
[348960566,1736895032263,-500.0,0.00010273,2]
[348960567,1736895032273,-500.0,0.00010273,2]
[348960568,1736895032283,-500.0,0.00010273,2]
[348960569,1736895032292,-248.73293838,0.00010273,2]
[348960570,1736895032304,-500.0,0.00010273,2]
[348960571,1736895032313,-500.0,0.00010273,2]
[348960572,1736895032323,-500.0,0.00010273,2]
[348960573,1736895032332,-500.0,0.00010273,2]
[348960574,1736895032342,-500.0,0.00010273,2]
[348960575,1736895032352,-507.66,0.00010273,2]
[348960576,1736895032361,-500.0,0.00010273,2]
[348960577,1736895032372,-500.0,0.00010273,2]
[348960578,1736895032382,-500.0,0.00010273,2]
[348960579,1736895032393,-500.0,0.00010273,2]
[348960580,1736895032403,-500.0,0.00010273,2]
[348960581,1736895032412,-366.40323672,0.00010273,2]
[348960582,1736895032422,-500.0,0.00010273,2]
[348960583,1736895032432,-500.0,0.00010273,2]
[348960584,1736895032441,-594.92,0.00010273,2]
[348960585,1736895032452,-500.0,0.00010273,2]
[348960586,1736895032461,-530.74,0.00010273,2]
[348960587,1736895032471,-500.0,0.00010273,2]
[348960588,1736895032480,-625.97,0.00010273,2]
[348960589,1736895032490,-500.0,0.00010273,2]
[348960590,1736895032500,-500.0,0.00010273,2]
[348960591,1736895032510,-500.0,0.00010273,2]
[348960592,1736895032519,-500.0,0.00010273,2]
[348960593,1736895032529,-500.0,0.00010273,2]
[348960594,1736895032539,-171.320128,0.00010469,2]
[348960595,1736895032549,-171.320128,0.00010469,2]
[348960596,1736895032559,-309.2,0.00010479,2]
[348960597,1736895032569,-500.0,0.00010547,2]
[348960598,1736895032579,-500.0,0.00010547,2]
[348960599,1736895032588,-500.0,0.00010547,2]
[348960600,1736895032598,-500.0,0.00010547,2]
[348960601,1736895032608,-500.0,0.00010547,2]
[348960602,1736895032617,-500.0,0.00010547,2]
[348960603,1736895032627,-500.0,0.00010547,2]
[348960604,1736895032638,-500.0,0.00010547,2]
[348960605,1736895032648,-500.0,0.00010547,2]
[348960606,1736895032658,-500.0,0.00010547,2]
[348960607,1736895032667,-500.0,0.00010547,2]
[348960608,1736895032677,-500.0,0.00010547,2]
[348960609,1736895032686,-500.0,0.00010547,2]
[348960610,1736895032695,-500.0,0.00010547,2]
[348960611,1736895032705,-500.0,0.00010547,2]
[348960612,1736895032715,-500.0,0.00010547,2]
[348960613,1736895032724,-500.0,0.00010547,2]
[348960614,1736895032734,-500.0,0.00010547,2]
[348960615,1736895032743,-500.0,0.00010547,2]
[348960616,1736895032754,-500.0,0.00010547,2]
[348960617,1736895032764,-500.0,0.00010547,2]
[348960618,1736895032774,-513.52,0.00010547,2]
[348960619,1736895032784,-500.0,0.00010547,2]
[348960620,1736895032793,-500.0,0.00010547,2]
[348960621,1736895032803,-500.0,0.00010547,2]
[348960622,1736895032813,-500.0,0.00010547,2]
[348960623,1736895032822,-605.02,0.00010547,2]
[348960624,1736895032831,-500.0,0.00010547,2]
[348960625,1736895032841,-500.0,0.00010547,2]
[348960626,1736895032850,-500.0,0.00010547,2]
[348960627,1736895032859,-630.29,0.00010547,2]
[348960628,1736895032869,-500.0,0.00010547,2]
[348960629,1736895032878,-560.15,0.00010547,2]
[348960630,1736895032887,-500.0,0.00010547,2]
[348960631,1736895032898,-500.0,0.00010547,2]
[348960632,1736895032907,-500.0,0.00010547,2]
[348960633,1736895032917,-500.0,0.00010547,2]
[348960634,1736895032926,-500.0,0.00010547,2]
[348960635,1736895032936,-500.0,0.00010547,2]
[348960636,1736895032945,-500.0,0.00010547,2]
[348960637,1736895032955,-500.0,0.00010547,2]
[348960638,1736895032964,-500.0,0.00010547,2]
[348960639,1736895032974,-356.29,0.00010547,2]
[348960640,1736895032983,-500.0,0.00010547,2]
[348960641,1736895032992,-500.0,0.00010547,2]
[348960642,1736895033002,-507.66,0.00010547,2]
[348960643,1736895033012,-500.0,0.00010547,2]
[348960644,1736895033022,-500.0,0.00010547,2]
[348960645,1736895033031,-500.0,0.00010547,2]
[348960646,1736895033042,-500.0,0.00010547,2]
[348960647,1736895033051,-500.0,0.00010547,2]
[348960648,1736895033061,-500.0,0.00010547,2]
[348960649,1736895033070,-500.0,0.00010547,2]
[348960650,1736895033080,-594.92,0.00010547,2]
[348960651,1736895033093,-500.0,0.00010547,2]
[348960652,1736895033103,-530.74,0.00010547,2]
[348960653,1736895033113,-500.0,0.00010547,2]
[348960654,1736895033123,-625.97,0.00010547,2]
[348960655,1736895033134,-500.0,0.00010547,2]
[348960656,1736895033143,-500.0,0.00010547,2]
[348960657,1736895033153,-500.0,0.00010547,2]
[348960658,1736895033162,-500.0,0.00010547,2]
[348960659,1736895033174,-500.0,0.00010547,2]
[348960660,1736895033183,-365.76,0.00010561,2]
[348960661,1736895033193,-34793.0,0.00010567,2]
[348960662,1736895033203,-1000.0,0.00010573,2]
[348960663,1736895033212,-500.0,0.00010603,2]
[348960664,1736895033222,-2375.72274103,0.00010624,2]
[348960665,1736895033232,-150.9829276,0.00010721,2]
[348960666,1736895033241,-500.0,0.0001082,2]
[348960667,1736895033251,-1043.54,0.0001082,2]
[348960668,1736895033260,-553.0,0.0001082,2]
[348960669,1736895033271,-1938.57,0.0001082,2]
[348960670,1736895033281,-645.22,0.0001082,2]
[348960671,1736895033291,-1286.98,0.0001082,2]
[348960672,1736895033300,-3681.02,0.0001082,2]
[348960673,1736895033310,-515.2,0.0001082,2]
[348960674,1736895033320,-696.83,0.0001082,2]
[348960675,1736895033330,-500.0,0.0001082,2]
[348960676,1736895033339,-1126.78,0.0001082,2]
[348960677,1736895033349,-500.0,0.0001082,2]
[348960678,1736895033359,-2457.45,0.0001082,2]
[348960679,1736895033369,-730.3,0.0001082,2]
[348960680,1736895033380,-500.0,0.0001082,2]
[348960681,1736895033390,-1114.56,0.0001082,2]
[348960682,1736895033399,-895.5,0.0001082,2]
[348960683,1736895033408,-500.0,0.00010821,2]
[348960684,1736895033418,-500.0,0.00010821,2]
[348960685,1736895033427,-500.0,0.00010821,2]
[348960686,1736895033438,-500.0,0.00010821,2]
[348960687,1736895033448,-500.0,0.00010821,2]
[348960688,1736895033458,-500.0,0.00010821,2]
[348960689,1736895033467,-500.0,0.00010821,2]
[348960690,1736895033477,-500.0,0.00010821,2]
[348960691,1736895033488,-500.0,0.00010821,2]
[348960692,1736895033498,-500.0,0.00010821,2]
[348960693,1736895033508,-500.0,0.00010821,2]
[348960694,1736895033518,-500.0,0.00010821,2]
[348960695,1736895033528,-465.46020656,0.00010821,2]
[348960696,1736895033538,-500.0,0.00010821,2]
[348960697,1736895033548,-500.0,0.00010821,2]
[348960698,1736895033557,-500.0,0.00010821,2]
[348960699,1736895033567,-500.0,0.00010821,2]
[348960700,1736895033577,-513.52,0.00010821,2]
[348960701,1736895033586,-500.0,0.00010821,2]
[348960702,1736895033596,-500.0,0.00010821,2]
[348960703,1736895033605,-605.02,0.00010821,2]
[348960704,1736895033615,-500.0,0.00010821,2]
[348960705,1736895033625,-500.0,0.00010821,2]
[348960706,1736895033635,-500.0,0.00010821,2]
[348960707,1736895033645,-630.29,0.00010821,2]
[348960708,1736895033655,-560.15,0.00010821,2]
[348960709,1736895033665,-500.0,0.00010821,2]
[348960710,1736895033675,-500.0,0.00010821,2]
[348960711,1736895033685,-417.75574994,0.00010821,2]
[348960712,1736895033695,-500.0,0.00010821,2]
[348960713,1736895033705,-500.0,0.00010821,2]
[348960714,1736895033715,-500.0,0.00010821,2]
[348960715,1736895033725,-500.0,0.00010821,2]
[348960716,1736895033734,-500.0,0.00010821,2]
[348960717,1736895033744,-500.0,0.00010821,2]
[348960718,1736895033754,-500.0,0.00010821,2]
[348960719,1736895033764,-500.0,0.00010821,2]
[348960720,1736895033775,-507.66,0.00010821,2]
[348960721,1736895033785,-500.0,0.00010821,2]
[348960722,1736895033795,-500.0,0.00010821,2]
[348960723,1736895033805,-500.0,0.00010821,2]
[348960724,1736895033815,-500.0,0.00010821,2]
[348960725,1736895033825,-500.0,0.00010821,2]
[348960726,1736895033835,-500.0,0.00010821,2]
[348960727,1736895033844,-407.41,0.00010821,2]
[348960728,1736895033854,-594.92,0.00010821,2]
[348960729,1736895033863,-500.0,0.00010821,2]
[348960730,1736895033873,-530.74,0.00010821,2]
[348960731,1736895033883,-500.0,0.00010821,2]
[348960732,1736895033893,-625.97,0.00010821,2]
[348960733,1736895033903,-500.0,0.00010821,2]
[348960734,1736895033913,-500.0,0.00010821,2]
[348960735,1736895033923,-500.0,0.00010821,2]
[348960736,1736895033932,-500.0,0.00010821,2]
[348960737,1736895033942,-500.0,0.00010821,2]
[348960738,1736895033951,-3000.0,0.0001089,2]
[348960739,1736895033961,-852.061,0.00010899,2]
[348960740,1736895033971,-5000.0,0.000109,2]
[348960741,1736895033981,-961.59948327,0.000109,2]
[348960742,1736895033991,-179.77865759,0.000109,2]
[348960743,1736895034001,-1667.55582789,0.000109,2]
[348960744,1736895034011,-150.0,0.00010959,2]
[348960745,1736895034020,-1280.1686,0.00010968,2]
[348960746,1736895034030,-500.0,0.00010973,2]
[348960747,1736895034040,-171.320128,0.00010992,2]
[348960748,1736895034049,-171.320128,0.00010992,2]
[348960749,1736895034059,-500.0,0.00010998,2]
[348960750,1736895034069,-607.79,0.00010998,2]
[348960751,1736895034079,-513.67,0.00010998,2]
[348960752,1736895034090,-500.0,0.00010998,2]
[348960753,1736895034101,-862.59,0.00010998,2]
[348960754,1736895034111,-500.0,0.00010998,2]
[348960755,1736895034121,-506.08,0.00010998,2]
[348960756,1736895034131,-513.84,0.00010998,2]
[348960757,1736895034141,-500.0,0.00010998,2]
[348960758,1736895034150,-897.93,0.00010998,2]
[348960759,1736895034160,-576.57,0.00010998,2]
[348960760,1736895034170,-1399.72,0.00010998,2]
[348960761,1736895034180,-500.0,0.00010998,2]
[348960762,1736895034190,-372.85376622,0.00010998,2]
[348960763,1736895034200,-1516.18,0.00010998,2]
[348960764,1736895034210,-1482.16,0.00010998,2]
[348960765,1736895034219,-1040.71,0.00010998,2]
[348960766,1736895034229,-683.12,0.00010998,2]
[348960767,1736895034239,-853.39,0.00010998,2]
[348960768,1736895034248,-1729.21,0.00010998,2]
[348960769,1736895034257,-672.592347,0.00010998,2]
[348960770,1736895034266,-500.0,0.00010998,2]
[348960771,1736895034276,-672.61,0.00010998,2]
[348960772,1736895034286,-600.42,0.00010998,2]
[348960773,1736895034295,-500.0,0.00010998,2]
[348960774,1736895034305,-691.31,0.00010998,2]
[348960775,1736895034315,-2629.2,0.00010998,2]
[348960776,1736895034325,-81875.77157321,0.00010999,2]
[348960777,1736895034335,-580.927481,0.00010999,2]
[348960778,1736895034344,-500.0,0.00010999,2]
[348960779,1736895034355,-695.09,0.00010999,2]
[348960780,1736895034367,-500.0,0.00010999,2]
[348960781,1736895034378,-547.9792,0.00010999,2]
[348960782,1736895034388,-558.4,0.00010999,2]
[348960783,1736895034399,-500.0,0.00010999,2]
[348960784,1736895034409,-500.0,0.00010999,2]
[348960785,1736895034419,-500.0,0.00010999,2]
[348960786,1736895034430,-500.0,0.00010999,2]
[348960787,1736895034439,-500.0,0.00010999,2]
[348960788,1736895034450,-500.0,0.00010999,2]
[348960789,1736895034459,-500.0,0.00010999,2]
[348960790,1736895034469,-500.0,0.00010999,2]
[348960791,1736895034479,-500.0,0.00010999,2]
[348960792,1736895034489,-500.0,0.00010999,2]
[348960793,1736895034499,-500.0,0.00010999,2]
[348960794,1736895034509,-2389.01,0.00010999,2]
[348960795,1736895034518,-196.01901628,0.00010999,2]
[348960796,1736895034529,-500.0,0.00010999,2]
[348960797,1736895034539,-500.0,0.00010999,2]
[348960798,1736895034553,-500.0,0.00010999,2]
[348960799,1736895034564,-500.0,0.00010999,2]
[348960800,1736895034573,-500.0,0.00010999,2]
[348960801,1736895034582,-500.0,0.00010999,2]
[348960802,1736895034592,-500.0,0.00010999,2]
[348960803,1736895034601,-1032.96,0.00010999,2]
[348960804,1736895034611,-500.0,0.00010999,2]
[348960805,1736895034621,-500.0,0.00010999,2]
[348960806,1736895034630,-500.0,0.00010999,2]
[348960807,1736895034640,-536.9,0.00010999,2]
[348960808,1736895034649,-500.0,0.00010999,2]
[348960809,1736895034659,-500.0,0.00010999,2]
[348960810,1736895034668,-500.0,0.00010999,2]
[348960811,1736895034677,-500.0,0.00010999,2]
[348960812,1736895034687,-369.4494947,0.00010999,2]
[348960813,1736895034697,-543.38,0.00010999,2]
[348960814,1736895034706,-500.0,0.00010999,2]
[348960815,1736895034716,-500.0,0.00010999,2]
[348960816,1736895034725,-500.0,0.00010999,2]
[348960817,1736895034735,-500.0,0.00010999,2]
[348960818,1736895034744,-669.46,0.00010999,2]
[348960819,1736895034753,-500.0,0.00010999,2]
[348960820,1736895034763,-500.0,0.00010999,2]
[348960821,1736895034777,-500.0,0.00010999,2]
[348960822,1736895034788,-500.0,0.00010999,2]
[348960823,1736895034797,-500.0,0.00010999,2]
[348960824,1736895034807,-500.0,0.00010999,2]
[348960825,1736895034818,-500.0,0.00010999,2]
[348960826,1736895034827,-500.0,0.00010999,2]
[348960827,1736895034838,-500.0,0.00010999,2]
[348960828,1736895034848,-500.0,0.00010999,2]
[348960829,1736895034858,-2198.88,0.00010999,2]
[348960830,1736895034867,-515.67,0.00010999,2]
[348960831,1736895035106,-500.0,0.00010999,2]
[348960832,1736895035116,-500.69,0.00010999,2]
[348960833,1736895035126,-500.0,0.00010999,2]
[348960834,1736895035136,-500.0,0.00010999,2]
[348960835,1736895035145,-1015.66,0.00010999,2]
[348960836,1736895035155,-500.0,0.00010999,2]
[348960837,1736895035165,-518.3,0.00010999,2]
[348960838,1736895035175,-500.0,0.00010999,2]
[348960839,1736895035188,-1221.54,0.00010999,2]
[348960840,1736895035199,-727.81,0.00010999,2]
[348960841,1736895035211,-500.0,0.00010999,2]
[348960842,1736895035220,-500.0,0.00010999,2]
[348960843,1736895035230,-689.41,0.00010999,2]
[348960844,1736895035240,-500.0,0.00010999,2]
[348960845,1736895035250,-500.0,0.00010999,2]
[348960846,1736895035261,-500.0,0.00010999,2]
[348960847,1736895035271,-800.98,0.00010999,2]
[348960848,1736895035281,-500.0,0.00010999,2]
[348960849,1736895035291,-500.0,0.00010999,2]
[348960850,1736895035301,-500.0,0.00010999,2]
[348960851,1736895035312,-500.0,0.00010999,2]
[348960852,1736895035322,-500.0,0.00010999,2]
[348960853,1736895035331,-500.0,0.00010999,2]
[348960854,1736895035341,-500.0,0.00010999,2]
[348960855,1736895035350,-1426.02,0.00010999,2]
[348960856,1736895035363,-612.58,0.00010999,2]
[348960857,1736895035372,-500.0,0.00010999,2]
[348960858,1736895035382,-500.0,0.00010999,2]
[348960859,1736895035391,-500.0,0.00010999,2]
[348960860,1736895035401,-822.52,0.00010999,2]
[348960861,1736895035410,-2673.07,0.00010999,2]
[348960862,1736895035419,-500.0,0.00010999,2]
[348960863,1736895035429,-500.0,0.00010999,2]
[348960864,1736895035438,-500.0,0.00010999,2]
[348960865,1736895035448,-500.0,0.00010999,2]
[348960866,1736895035457,-2019.66,0.00010999,2]
[348960867,1736895035466,-500.0,0.00010999,2]
[348960868,1736895035476,-1918.76,0.00010999,2]
[348960869,1736895035485,-571.69,0.00010999,2]
[348960870,1736895035495,-2387.2,0.00010999,2]
[348960871,1736895035504,-500.0,0.00010999,2]
[348960872,1736895035514,-500.0,0.00010999,2]
[348960873,1736895035523,-506.69,0.00010999,2]
[348960874,1736895035533,-998128.27681143,0.00011,2]
[348960875,1736895035542,-550.91538477,0.00011,2]
[348960876,1736895035551,-550.0,0.00011,2]
[348960877,1736895035560,-206.13981403,0.00011047,2]
[348960878,1736895035570,-859.54,0.00011089,2]
[348960879,1736895035579,-500.0,0.00011089,2]
[348960880,1736895035588,-500.0,0.00011094,2]
[348960881,1736895035598,-1043.54,0.00011094,2]
[348960882,1736895035608,-553.0,0.00011094,2]
[348960883,1736895035618,-1938.57,0.00011094,2]
[348960884,1736895035628,-645.22,0.00011094,2]
[348960885,1736895035637,-1286.98,0.00011094,2]
[348960886,1736895035646,-3681.02,0.00011094,2]
[348960887,1736895035655,-515.2,0.00011094,2]
[348960888,1736895035665,-696.83,0.00011094,2]
[348960889,1736895035674,-500.0,0.00011094,2]
[348960890,1736895035683,-1126.78,0.00011094,2]
[348960891,1736895035691,-500.0,0.00011094,2]
[348960892,1736895035701,-2457.45,0.00011094,2]
[348960893,1736895035710,-730.3,0.00011094,2]
[348960894,1736895035719,-500.0,0.00011094,2]
[348960895,1736895035729,-1114.56,0.00011094,2]
[348960896,1736895035738,-895.5,0.00011094,2]
[348960897,1736895035748,-500.0,0.00011095,2]
[348960898,1736895035757,-500.0,0.00011095,2]
[348960899,1736895035766,-500.0,0.00011095,2]
[348960900,1736895035775,-500.0,0.00011095,2]
[348960901,1736895035785,-500.0,0.00011095,2]
[348960902,1736895035794,-520.26484272,0.00011095,2]
[348960903,1736895035803,-285.56364914,0.00011095,2]
[348960904,1736895035813,-500.0,0.00011095,2]
[348960905,1736895035822,-500.0,0.00011095,2]
[348960906,1736895035831,-500.0,0.00011095,2]
[348960907,1736895035840,-500.0,0.00011095,2]
[348960908,1736895035849,-500.0,0.00011095,2]
[348960909,1736895035858,-500.0,0.00011095,2]
[348960910,1736895035867,-500.0,0.00011095,2]
[348960911,1736895035876,-500.0,0.00011095,2]
[348960912,1736895035885,-513.52,0.00011095,2]
[348960913,1736895035895,-500.0,0.00011095,2]
[348960914,1736895035904,-605.02,0.00011095,2]
[348960915,1736895035914,-500.0,0.00011095,2]
[348960916,1736895035923,-500.0,0.00011095,2]
[348960917,1736895035935,-500.0,0.00011095,2]
[348960918,1736895035946,-630.29,0.00011095,2]
[348960919,1736895035957,-560.15,0.00011095,2]
[348960920,1736895035967,-500.0,0.00011095,2]
[348960921,1736895035979,-273.70403453,0.00011095,2]
[348960922,1736895035988,-500.0,0.00011095,2]
[348960923,1736895035999,-528.66946751,0.00011095,2]
[348960924,1736895036011,-500.0,0.00011095,2]
[348960925,1736895036022,-500.0,0.00011095,2]
[348960926,1736895036032,-500.0,0.00011095,2]
[348960927,1736895036043,-500.0,0.00011095,2]
[348960928,1736895036053,-500.0,0.00011095,2]
[348960929,1736895036064,-500.0,0.00011095,2]
[348960930,1736895036073,-507.66,0.00011095,2]
[348960931,1736895036083,-500.0,0.00011095,2]
[348960932,1736895036097,-500.0,0.00011095,2]
[348960933,1736895036107,-570.38249328,0.00011095,2]
[348960934,1736895036118,-500.0,0.00011095,2]
[348960935,1736895036129,-500.0,0.00011095,2]
[348960936,1736895036138,-500.0,0.00011095,2]
[348960937,1736895036148,-594.92,0.00011095,2]
[348960938,1736895036158,-500.0,0.00011095,2]